Cogmind - Beta 12 @@@ ROGUE MODE // 2023.04.07 @ 12:01:49 Player: Mr Goldstein Result: Destroyed by as-67326 with Assembled Blade Performance ------------- Evolutions (0) 0 Regions Visited (2) 400 Robots Destroyed (11) 55 Value Destroyed (275) 275 Prototype IDs (3) 60 Alien Tech Used (0) 0 Bonus (0) 0 TOTAL SCORE: 790 Bonus ------- None Cogmind --------- Core Integrity 0/250 Matter 283/300 Energy 100/100 System Corruption 0% Temperature Cool (0) Movement Rolling (200) Ox8 Location -10/Mines Parts ------- > --- POWER (1) -------- (None) > --- PROPULSION (2) --- Wheel > --- UTILITY (2) ------ Huge Storage Unit Core Shielding > --- WEAPON (2) ------- (None) > --- INVENTORY (25) --- Heavy Ion Engine Heavy Ion Engine Wheel Large Matter Pod (129) EM Pulse Gun Beam Rifle Beam Rifle Beam Rifle Beam Rifle Grenade Launcher Peak State ------------ > --- POWER ------------ Heavy Ion Engine > --- PROPULSION ------- Wheel Compact Wheel > --- UTILITY ---------- Large Storage Unit Huge Storage Unit > --- WEAPON ----------- Beam Rifle Light Assault Rifle > --- INVENTORY -------- Heavy Ion Engine Heavy Ion Engine Wheel Wheel Large Matter Pod EM Pulse Gun Beam Rifle Beam Rifle Beam Rifle Grenade Launcher [Rating: 11] Favorites ----------- Power Heavy Ion Engine Engine Heavy Ion Engine Propulsion Compact Wheel Wheel Compact Wheel Utility Light Armor Plating Storage Huge Storage Unit Protection Light Armor Plating Weapon Light Assault Rifle Energy Gun Beam Rifle Ballistic Gun Light Assault Rifle Launcher Grenade Launcher Build | -11 -10 -10 ------- Run | Jun Mat Min Slots Evolved . | . . . Power . | . . . Propulsion . | . . . Utility . | . . . Weapon . | . . . Parts Attached 20 | 6 13 1 Power 3 | 1 2 . Engine 3 | 1 2 . Core . | . . . Reactor . | . . . Propulsion 3 | 2 . 1 Treads . | . . . Leg . | . . . Wheel 3 | 2 . 1 Hover . | . . . Flight . | . . . Utility 6 | 1 5 . Device . | . . . Storage 3 | 1 2 . Processor . | . . . Hackware . | . . . Protection 3 | . 3 . Artifact . | . . . Weapon 8 | 2 6 . Energy Gun 2 | 1 1 . Energy Cannon . | . . . Ballistic Gun 3 | 1 2 . Ballistic Cannon . | . . . Launcher 3 | . 3 . Special Weapon . | . . . Impact Weapon . | . . . Slashing Weapon . | . . . Piercing Weapon . | . . . Special Melee Weapon . | . . . Unidentified Prototypes 1 | . 1 . Parts Lost 8 | . 3 5 Power 2 | . 1 1 Propulsion 2 | . . 2 Utility 1 | . 1 . Weapon 3 | . 1 2 Highest Loss Streak 5 | . 1 5 To Critical Strikes . | . . . Average Slot Usage (%) 92 | . 91 94 Engine 13 | . 13 13 Wheel 27 | . 28 25 Storage 14 | . 14 14 Protection 9 | . 8 14 Energy Gun 10 | . 12 . Ballistic Gun 13 | . 13 13 Launcher 2 | . . 13 Naked Turns . | . . . Heaviest Build 93 | 10 93 93 Greatest Support 26 | 26 26 26 Greatest Overweight (x) 8 | . 3 8 Average Overweight (x) 1 | . 1 3 Largest Inventory Capacity 25 | 8 25 25 Average Capacity 16 | 6 15 25 Most Carried 12 | 4 12 11 Average Carried 7 | 1 7 10 Final Capacity 25 | 8 25 25 Final Carried 11 | 2 11 10 Class Distribution -------------------- 100% | Mutant Dominant Class ---------------- Mutant | -10/Materials Mutant | -10/Mines Resources | -11 -10 -10 ----------- Run | Jun Mat Min Matter Collected 549 | 235 314 . Remotely . | . . . Salvage Created 462 | . 462 . Parts 19 | . 19 . Haulers Intercepted 1 | . 1 . Recyclers Shooed . | . . . Parts Field Recycled . | . . . Retrieved Matter . | . . . Parts Self-Destructed . | . . . Prevented . | . . . Kills | -11 -10 -10 ------- Run | Jun Mat Min Combat Hostiles Destroyed 7 | . 6 1 Guns 6 | . 6 . AOE 1 | . . 1 Classes Destroyed 7 | . 6 1 Worker 1 | . 1 . Tunneler 1 | . 1 . Hauler 1 | . 1 . Recycler 1 | . 1 . Operator 1 | . 1 . Grunt 6 | . 6 . Assembled 1 | . . 1 Best Kill Streak 3 | . 3 1 Combat Bots Only 2 | . 2 1 Max Kills in Single Turn 1 | . 1 1 Gunslinging . | . . . Exploded 1 | . . 1 Melee . | . . . Uniques/NPCs Destroyed . | . . . Combat | -11 -10 -10 -------- Run | Jun Mat Min Damage Taken 1016 | . 477 539 Core 273 | . 144 129 Absorbed by Shields . | . . . Redirected to Shielding 29 | . . 29 Core Remaining (%) 100 | 100 . . Volleys Fired 48 | . 46 2 Largest 2 | . 2 2 Hottest 76 | . 76 50 Shots Fired 87 | . 83 4 Gun 84 | . 82 2 Cannon . | . . . Launcher 3 | . 1 2 Special . | . . . Kinetic 47 | . 45 2 Thermal 37 | . 37 . Explosive 3 | . 1 2 Electromagnetic . | . . . Robot Hit Streak 12 | . 12 3 Robot Miss Streak 3 | . 3 1 Penetration Max . | . . . Secondary Targets . | . . . Shots Hit Robots 56 | . 55 1 Core Hits 41 | . 28 13 Critical Kills 1 | . 1 . Critical Parts Destroyed . | . . . Critical Strikes 3 | . 3 . Burn 2 | . 2 . Destroy 1 | . 1 . Melee Attacks . | . . . Impact . | . . . Slashing . | . . . Piercing . | . . . Sneak Attacks . | . . . Combat Hostiles . | . . . Follow-up Attacks . | . . . Damage Inflicted 873 | . 589 284 Guns 596 | . 589 7 Cannons . | . . . Explosions 277 | . . 277 Melee . | . . . Ramming . | . . . Kinetic 260 | . 253 7 Thermal 336 | . 336 . Explosive 277 | . . 277 Electromagnetic . | . . . Impact . | . . . Slashing . | . . . Piercing . | . . . Highest Corruption . | . . . Average Corruption . | . . . Corruption Purged . | . . . Corruption Blocked . | . . . Overload Shots . | . . . Overflow Damage 2 | . . 2 Projectiles . | . . . Explosions 2 | . . 2 Melee . | . . . Knockbacks . | . . . Impact . | . . . Kinetic . | . . . Secondary . | . . . Self-Inflicted Damage 15 | . . 15 Shots 1 | . . 1 Rammed . | . . . Targets Rammed . | . . . Kicked . | . . . Crushed . | . . . Highest Temperature 292 | . 292 41 Average Temperature 94 | . 99 10 Received Heat Transfer 434 | . 294 140 Siege Activations . | . . . Robots Corrupted . | . . . Combat Hostiles . | . . . Parts Fried . | . . . Impact Corruptions . | . . . Robots Melted . | . . . Combat Hostiles . | . . . Parts Melted . | . . . Heat Transferred 989 | . 989 . Parts Sabotaged . | . . . Parts Stolen . | . . . Parts Stripped . | . . . Power Chain Reactions . | . . . Missiles Intercepted . | . . . Alert | -11 -10 -10 ------- Run | Jun Mat Min Peak Influence 125 | . 125 24 Initial 19 | . . 19 Average 50 | . 61 19 Maximum Alert Level . | . . . Low Security (%) 100 | 100 100 100 Level 1 . | . . . Level 2 . | . . . Level 3 . | . . . Level 4 . | . . . Level 5 . | . . . High Security . | . . . Max Security . | . . . Squads Dispatched . | . . . Investigation . | . . . Extermination . | . . . Reinforcement . | . . . Assault . | . . . Garrison . | . . . Intercept . | . . . Searches Triggered . | . . . Construction Impeded . | . . . Haulers Reinforced . | . . . Active Scanning Responses . | . . . Cargo Convoy Interrupts . | . . . Stealth | -11 -10 -10 --------- Run | Jun Mat Min Distress Signals 2 | . 2 . Communications Jammed . | . . . Distress Signals . | . . . Times Spotted 29 | . 9 20 Peak Tracking Total 19 | . 4 19 Tactical Retreats 1 | . . 1 Traps | -11 -10 -10 ------- Run | Jun Mat Min Traps Triggered 1 | . 1 . Indirectly . | . . . Trap Hack Attempts . | . . . Triggered . | . . . Disarmed . | . . . Reprogrammed . | . . . Reused . | . . . Traps Extracted . | . . . Installed . | . . . Triggered . | . . . Machines | -11 -10 -10 ---------- Run | Jun Mat Min Machines Disabled 1 | . 1 . Max in Single Turn 1 | . 1 . Machines Repaired . | . . . Machines Sabotaged . | . . . Overloaded Fab Kills . | . . . Hacking | -11 -10 -10 --------- Run | Jun Mat Min Machines Accessed 6 | . 6 . Terminals 4 | . 4 . Fabricators . | . . . Repair Stations . | . . . Recycling Units 2 | . 2 . Scanalyzers . | . . . Garrison Access . | . . . Total Hacks 18 | . 18 . Successful 6 | . 6 . Failed 12 | . 12 . Catastrophic 1 | . 1 . Database Lockouts . | . . . Manual 4 | . 4 . Terminals 12 | . 12 . Fabricators . | . . . Repair Stations . | . . . Recycling Units 6 | . 6 . Scanalyzers . | . . . Garrison Access . | . . . Terminal Hacks 3 | . 3 . Prototype ID Bank 3 | . 3 . Fabricator Hacks . | . . . Repair Station Hacks . | . . . Recycling Unit Hacks 1 | . 1 . Retrieve Components 1 | . 1 . Scanalyzer . | . . . Garrison Access Hacks . | . . . Unauthorized Hacks 2 | . 2 . Terminals . | . . . Fabricators . | . . . Repair Stations . | . . . Recycling Units 2 | . 2 . Reject 2 | . 2 . Scanalyzers . | . . . Garrison Access . | . . . Data Cores Recovered 1 | . 1 . Used . | . . . Hacking Detections 6 | . 6 . Full Trace Events . | . . . Feedback Events . | . . . Feedback Blocked . | . . . Robot Schematics Acquired . | . . . Robots Built . | . . . Authchips . | . . . Time . | . . . Total Robot Build Rating . | . . . Part Schematics Acquired . | . . . Parts Built . | . . . Authchips . | . . . Time . | . . . Total Part Build Rating . | . . . Parts Repaired . | . . . Time . | . . . Parts Recycled . | . . . Recycled Matter . | . . . Retrieved Matter . | . . . Retrieved Components 9 | . 9 . Parts Scanalyzed . | . . . Part Schematics Acquired . | . . . Parts Damaged . | . . . Bothacking | -11 -10 -10 ------------ Run | Jun Mat Min Used RIF Installer . | . . . Robots Hacked . | . . . Non-combat . | . . . Combat . | . . . Robot Hacks Applied . | . . . Relay Couplers Released . | . . . Fabnet Peak Effective % . | . . . Robots Rewired . | . . . Allies Hacked . | . . . Hacks Repelled . | . . . Allies | -11 -10 -10 -------- Run | Jun Mat Min Total Allies . | . . . Largest Group . | . . . Highest-Rated Group . | . . . Highest-Rated Ally . | . . . Total Orders . | . . . Ally Attacks . | . . . Total Damage . | . . . Kills . | . . . Allies Corrupted . | . . . Allies Melted . | . . . Intel | -11 -10 -10 ------- Run | Jun Mat Min Robot Analysis Total . | . . . Derelict Logs Recovered 1 | . . 1 Drone Launches . | . . . Drone Recoveries . | . . . Exploration | -11 -10 -10 ------------- Run | Jun Mat Min Turns Passed 959 | 54 751 154 Spaces Moved 670 | 50 525 95 Core 12 | 12 . . Treads . | . . . Legs . | . . . Wheels 658 | 38 525 95 Hover . | . . . Flight . | . . . Fastest Speed 50 | 50 90 135 Average Speed 110 | 80 108 140 Slowest Speed 200 | 90 135 200 Overloaded Moves . | . . . Propulsion Burnouts . | . . . Robots Hopped . | . . . Cave-ins Triggered . | . . . Exploration Rate (%) 31 | 3 69 21 Regions Visited 2 Branch Regions 1 Pre-discovered Areas 1 | . . 1 Known Exits Taken . | . . . Unknown Exits Taken 2 | 1 1 . Scrap Searched . | . . . Spaces Dug . | . . . Terrain Destroyed 27 | . 10 17 Melee . | . . . Projectile . | . . . AOE 27 | . 10 17 Terrain Rammed . | . . . Walls Destroyed . | . . . Machines Disabled . | . . . Actions | -11 -10 -10 --------- Run | Jun Mat Min Total 808 | 63 633 112 Wait 39 | . 25 14 Move 668 | 49 524 95 Hop . | . . . Pick Up 28 | 8 20 . Fast Attach . | . . . Attach 15 | 6 8 1 Detach . | . . . Swap 5 | . 5 . Drop 5 | . 5 . Fire 48 | . 46 2 Melee . | . . . Ram . | . . . Kick . | . . . Crush . | . . . Escape Stasis . | . . . Rewire . | . . . Trap . | . . . Miscellaneous . | . . . Route ------- -11/Junkyard -10/Materials (discovered 3 exits: [*Mat x2] / [*Min]) -10/Mines (discovered 1 exit: [*Mat]) History --------- Turn | Location | Event 28 | -11/Junkyard | Discovered new exit (range 16) 55 | -11/Junkyard | Entered Materials 112 | -10/Materials | Discovered new exit (range 16) 301 | -10/Materials | Build established: Mutant 303 | -10/Materials | Discovered new exit (range 8) 441 | -10/Materials | Core integrity fell below 50% 456 | -10/Materials | Discovered new exit (range 13) 806 | -10/Materials | Entered Mines 864 | -10/Mines | Discovered new exit (range 15) 895 | -10/Mines | Learned location of Recycling (-8) 917 | -10/Mines | Assembled infested the area 955 | -10/Mines | Core integrity fell below 20% 960 | -10/Mines | Destroyed by as-67326 with Assembled Blade Last Messages --------------- 00865_ K-01 Serf collects debris. 00895_ Acquired derelict log, extracted data. World map updated: -8/Recycling. 00902_ K-01 Serf collects debris. 00917_ ALERT: Infestation in the mines, dispatching Demolisher response squad. 00920_ K-01 Serf collects debris. 00930_ Destroyed Asb. Hover Unit. 00930_ Wheel destroyed. 00933_ as-68356 destroyed. 00933_ Destroyed Asb. F-torch. 00950_ as-70316 sneak attacks. 00950_ R-06 Scavenger destroyed. 00950_ Critical hit (Burn: +80). 00953_ K-01 Serf collects debris. 00953_ Grenade Launcher destroyed. 00955_ as-67326 sneak attacks. 00955_ K-01 Serf destroyed. 00956_ Hvy. Ion Engine destroyed. 00956_ Com. Wheel destroyed. 00958_ Lgt. Assault Rifle destroyed. Map ----- +----------------------------------------------------+ | ??????????????????????????????????### #?????????? | | ??????????????????????????????????# #?????????? | | ??????????????????????????????????# ####?????????? | | ??????????????????????????????????# #????????????? | | ????####??????????????????????????# #????????????? | | ? ?? #?????????????????????????# #????????????? | | #????????????????????????# #????????????? | | ????????????????????????# #????????????? | | ? ?????????????????######## #????????????? | | ?? ??????????????###?# #????????????? | | ?? ?????????????? #?# #######????????????? | | ??? ??????????????# #?# #??????????????????? | | ???# ??????????????# #?# #??????????????????? | | ????# ??????????????# #?# #??????????????????? | | ????# ??????????????# #?# #??????????????????? | | ????## #??????????????# #?# #??????????????????? | | ????# ##????????????# ### ###????????????????? | | ????# ######??????# ##???????????????? | | ????# #??????####k ##??????????????? | | ?????# #????????## #??????????????? | | ????# ### #???????## #??????????????? | | ???# ????# #???????# ##??????????????? | | ???# ""??????# ######### #####???????????????? | | ???# ????????# *%=aa ##??????????????????? | | ?????????????# ==% aa #??????????????????? | | ?????????????##### ######@ #??????????????????? | | ?????????????????# #????# ##??????????????????? | | ?????????????????# #????# #???????????????????? | | ????????????????? #????# ##???????????????????? | | ?????????????????###????# ##????????????????????? | | ???????????????????????? ##?????????????????????? | | ????????????????????????